{"text_format":"1","workbook":"xlsx","n_sheets":2,"sheets":["Instructions","Plan de formation en entreprise"],"not_rendered":{"charts":0,"images":3,"macros":1,"external_links":0,"defined_names":4,"comments":0,"pivot_tables":0},"unopened":[],"bounds":{"document_bytes":16777216,"sheet_cells":100000,"rows_first":2000,"rows_last":500,"rows_between":2000,"halvings":0,"cell_chars":16384,"cell_head_chars":4096},"cells_cut":0,"cells_raw":0,"read":"whole","date_system":"1900"}

{"sheet":"Instructions","index":0,"n_rows":0,"n_cols":0,"rows_kept":0,"cut":false,"hidden":false,"merged":[]}

{"sheet":"Plan de formation en entreprise","index":1,"n_rows":206,"n_cols":21,"rows_kept":206,"cut":false,"hidden":false,"merged":[]}
[]
[null,null,"Plan de formation d'apprentissage"]
[null,null,"avec: Mesures d'accompagnement en matière de sécurité au travail et de protection de la santé"]
[null,null," Ariane Exemple"]
[null,null,"20 Juillet 2014 - 19 Juillet 2018"]
[null,null,"Petra Muster"]
[]
[null,"Objectifs évaluateurs du plan de formation","Activités possibles","Branche","Branche","Branche","Branche","Mis en place\nDate/visa","Accompli\nDate/Visa","Semestre 1","Semestre 2","année d'apprentissage","Semestre 3","Semestre 4","année d'apprentissage","Semestre 5","Semestre 6","année d'apprentissage","Semestre 7","Semestre 8","année d'apprentissage"]
[null,null,null,"EB","ME","CB","FS",null,null,null,null,"1.",null,null,"2.",null,null,"3.",null,null,"4."]
[]
[null,"1. Préparation et planification","1. Préparation et planification","x","x","x","x",null,null,"x","x","x","x","x","x","x","x","x","x","x","x"]
[null,"1.1 Relever des cotes","1.1 Relever des cotes","x","x","x","x",null,null,null,null,null,"x","x",null,"x","x",null,"x","x"]
[null,"1.1.1 Ils utilisent les outils de mesure usuels pour relever les cotes (laser, équerre, pied à coulisse, etc.). ","- Ils utilisent des outils usuels pour la prise de mesure","x","x","x","x","2014-09-15","2014-10-15",null,null,{"$f":"IF(AND(J13=\"\",K13=\"\"),\"\",\"x\")","v":""},"x","x",{"$f":"IF(AND(M13=\"\",N13=\"\"),\"\",\"x\")","v":"x"},"x","x",{"$f":"IF(AND(P13=\"\",Q13=\"\"),\"\",\"x\")","v":"x"},"x","x",{"$f":"IF(AND(S13=\"\",T13=\"\"),\"\",\"x\")","v":"x"}]
[null,"1.1.2 Ils réalisent des relevés de cotes simples à l'aides de croquis. ","- Ils relèvent des mesures simple chez les clients ou sur le chantier","x","x","x","x",null,null,null,null,{"$f":"IF(AND(J14=\"\",K14=\"\"),\"\",\"x\")","v":""},"x","x",{"$f":"IF(AND(M14=\"\",N14=\"\"),\"\",\"x\")","v":"x"},"x","x",{"$f":"IF(AND(P14=\"\",Q14=\"\"),\"\",\"x\")","v":"x"},"x","x",{"$f":"IF(AND(S14=\"\",T14=\"\"),\"\",\"x\")","v":"x"}]
[null,"1.1.3 Ils réalisent des relevés de cotes simples à l'aides de croquis. ","- Ils respectent la norme et respectent le rapport Poids/Dimensions","x","x","x","x",null,null,null,null,"","x","x","x","x","x","x","x","x","x"]
[null,"1.2 Etablir et lire des plans","1.2 Etablir et lire des plans","x","x","x","x",null,null,"x","x","x","x","x","x","x","x","x","x","x","x"]
[null,"1.2.1 Ils réalisent des constructions. ","- Ils lisent des plans simples\n- Ils tracent des fragments \n- Ils respectent les détails de construction spécifiques à l'entreprise (assemblages d'angles ou de panneaux, socles, etc…)","x","x","x","x",null,null,"x","x",{"$f":"IF(AND(J17=\"\",K17=\"\"),\"\",\"x\")","v":"x"},"x","x",{"$f":"IF(AND(M17=\"\",N17=\"\"),\"\",\"x\")","v":"x"},"x","x",{"$f":"IF(AND(P17=\"\",Q17=\"\"),\"\",\"x\")","v":"x"},"x","x",{"$f":"IF(AND(S17=\"\",T17=\"\"),\"\",\"x\")","v":"x"}]
[null,"1.2.2 Ils conçoivent des travaux de menuiserie.","- Ils produisent de simples esquisses de construction","x","x","x","x",null,null,null,null,"","x","x","x","x","x","x","x","x","x"]
[null,"1.2.3 Ils interprètent les plans d'atelier usuels.","- Ils réalisent des travaux de menuiserie d'après les plans","x","x","x","x",null,null,"x","x","x","x","x","x","x","x","x","x","x","x"]
[null,"1.2.4 Ils appliquent les principes de physique de la construction concernant la protection contre les incendies, contre le bruit, contre la chaleur et contre l'humidité.","- Selon les plans d'atelier, ils appliquent les principes physiques de bases (incendie, chaleur, humidité)",null,"x",null,null,null,null,null,null,"",null,null,"",null,"x","x","x","x","x"]
[null,"1.2.5 Ils appliquent les normes, les règlements et les directives en vigueur dans le secteur du bâtiment.","- Durant la construction, ils appliquent les normes importantes en fonction du plan d'atelier","x","x",null,null,null,null,null,null,"",null,null,"","x","x","x","x","x","x"]
[null,"1.3 Etablir des listes de matériaux","1.3 Etablir des listes de matériaux","x","x","x","x",null,null,null,"x","x","x","x","x","x","x","x","x","x","x"]
[null,"1.3.1 Ils établissent des listes de matériaux usuelles (fabrication de ski: liste de configuration et de construction).","- Ils établissent des listes de matériaux pour des travaux simples de manière indépendante ","x","x","x","x",null,null,null,"x",{"$f":"IF(AND(J23=\"\",K23=\"\"),\"\",\"x\")","v":"x"},"x","x",{"$f":"IF(AND(M23=\"\",N23=\"\"),\"\",\"x\")","v":"x"},"x","x",{"$f":"IF(AND(P23=\"\",Q23=\"\"),\"\",\"x\")","v":"x"},"x","x",{"$f":"IF(AND(S23=\"\",T23=\"\"),\"\",\"x\")","v":"x"}]
[null,"1.3.2 Ils établissent des listes usuelles de l'entreprise (liste des ferrements, descriptif de pose, liste de verres, etc.). ","- Ils établissent des listes de ferrement de manière indépendante","x","x","x","x",null,null,null,"x","x","x","x","x","x","x","x","x","x","x"]
[null,"1.4 Rédiger des documents de travail internes","1.4 Rédiger des documents de travail internes","x","x","x","x",null,null,"x","x",{"$f":"IF(OR(J25=\"\",K25=\"\"),\"\",\"x\")","v":"x"},"x","x",{"$f":"IF(OR(M25=\"\",N25=\"\"),\"\",\"x\")","v":"x"},"x","x",{"$f":"IF(OR(P25=\"\",Q25=\"\"),\"\",\"x\")","v":"x"},"x","x",{"$f":"IF(OR(S25=\"\",T25=\"\"),\"\",\"x\")","v":"x"}]
[null,"1.4.1 Ils établissent des rapports usuels d'imputation du temps de travail et des travaux en régie.","- Ils imputent de manière indépendante leur temps de travail","x","x","x","x",null,null,"x","x",{"$f":"IF(AND(J26=\"\",K26=\"\"),\"\",\"x\")","v":"x"},"x","x",{"$f":"IF(AND(M26=\"\",N26=\"\"),\"\",\"x\")","v":"x"},"x","x",{"$f":"IF(AND(P26=\"\",Q26=\"\"),\"\",\"x\")","v":"x"},"x","x",{"$f":"IF(AND(S26=\"\",T26=\"\"),\"\",\"x\")","v":"x"}]
[null,"1.4.2 Ils utilisent le dossier d'apprentissage afin d'y consigner leur formation au sein de l'entreprise.","- Ils illustrent et rédigent des dossiers de formation\n- Ils respectent le nombre de documents par semestre ainsi que les délais","x","x","x","x",null,null,"x","x","x","x","x","x","x","x","x","x","x","x"]
[null,"1.4.3 Ils évaluent correctement leurs coûts pour leurs propres travaux. ","- Ils travaillent de manière efficace en fonction des coûts","x","x","x","x",null,null,null,null,"",null,null,"",null,null,"","x","x","x"]
[null,"1.5 Choisir et préparer les moyens de production","1.5 Choisir et préparer les moyens de production","x","x","x","x",null,null,"x","x","x","x","x","x","x","x","x","x","x","x"]
[null,"1.5.1 Ils choisissent pour leur intervention les moyens de production adéquats. ","- Ils préparent les bons outils pour les travaux de pose\n- Ils choisissent de manière indépendantes les bons outils pour un travail simple ","x","x","x","x",null,null,"x","x",{"$f":"IF(AND(J30=\"\",K30=\"\"),\"\",\"x\")","v":"x"},"x","x",{"$f":"IF(AND(M30=\"\",N30=\"\"),\"\",\"x\")","v":"x"},"x","x",{"$f":"IF(AND(P30=\"\",Q30=\"\"),\"\",\"x\")","v":"x"},"x","x",{"$f":"IF(AND(S30=\"\",T30=\"\"),\"\",\"x\")","v":"x"}]
[null,"1.5.2 Ils règlent les machines et les machines portatives.\n","- Ils préparent et mettent en place les machines ainsi que des machines portatives pour les travaux en entreprise et à la pose\n- Ils appliquent les règles de sécurité au travail ainsi la protection de la santé selon les machines (masque contre la poussière, protection auditive, etc.)","x","x","x","x",null,null,null,"x","x","x","x","x","x","x","x","x","x","x"]
[null,"1.5.3 Ils utilisent les outils  en tenant compte des matériaux à usiner, de la sécurité au travail et la protection de la santé. ","- Ils choisissent les outils adaptés au matériel\n- Ils appliquent les règles de sécurité au travail ainsi la protection de la santé selon les outils (masques contre la poussière, protection auditive, etc.) ","x","x","x","x",null,null,"x","x","x","x","x","x","x","x","x","x","x","x"]
[null,"1.6 Entretenir les moyens de production","1.6 Entretenir les moyens de production","x","x","x","x",null,null,"x","x","x","x","x","x","x","x","x","x","x","x"]
[null,"1.6.1 Ils entretiennent les machines stationnaires et les outils en tenant compte des modes d’emploi et selon les instructions habituelles.","- Ils nettoient et entretiennent les machines stationnaires\n- Ils entretiennent les outils \n- Ils prennent en compte les modes d'emploi et la protection de l'environnement ","x","x","x","x",null,null,null,"x",{"$f":"IF(AND(J34=\"\",K34=\"\"),\"\",\"x\")","v":"x"},"x","x",{"$f":"IF(AND(M34=\"\",N34=\"\"),\"\",\"x\")","v":"x"},"x","x",{"$f":"IF(AND(P34=\"\",Q34=\"\"),\"\",\"x\")","v":"x"},"x","x",{"$f":"IF(AND(S34=\"\",T34=\"\"),\"\",\"x\")","v":"x"}]
[null,"1.6.2 Ils entretiennent les machines portatives et les outils en tenant compte des modes d'emploi selon les instructions habituelles.","- Ils entretiennent les machines portatives et les outils","x","x","x","x",null,null,null,"x","x","x","x","x","x","x","x","x","x","x"]
[null,"1.6.3 Ils maintiennent leur poste de travail et l'outillage manuel propre et bien entretenu. ","- Ils maintiennent  l'ordre et la propreté sur leur place de travail\n- Ils affûtent leurs ciseaux, leurs rabots, etc...","x","x","x","x",null,null,"x","x","x","x","x","x","x","x","x","x","x","x"]
[null,"1.7 Vérifier la réception du matériel et préparer les livraisons","1.7 Vérifier la réception du matériel et préparer les livraisons","x","x","x","x",null,null,null,null,null,null,"x",null,"x","x",null,"x","x"]
[null,"1.7.1 Ils vérifient le bon de livraison, la quantité et la qualité des marchandises reçues. ","- Ils contrôlent le matériel et la pose à l'aide du bon de livraison","x","x","x","x",null,null,null,null,{"$f":"IF(AND(J38=\"\",K38=\"\"),\"\",\"x\")","v":""},null,"x",{"$f":"IF(AND(M38=\"\",N38=\"\"),\"\",\"x\")","v":"x"},"x","x",{"$f":"IF(AND(P38=\"\",Q38=\"\"),\"\",\"x\")","v":"x"},"x","x",{"$f":"IF(AND(S38=\"\",T38=\"\"),\"\",\"x\")","v":"x"}]
[null,"1.7.2 Ils préparent les livraisons en tenant compte de la sécurité au travail et la protection de la santé. ","- Ils préparent les livraisons \n- Ils emballent les produits de manière appropriée\n- Ils préparent de manière sécurisée les moyens de transports et les livraisons\n- Ils préservent leur santé ","x","x","x","x",null,null,null,null,"",null,null,"","x","x","x","x","x","x"]
[null,"2 Fabrication de produits","2 Fabrication de produits","x","x","x","x",null,null,"x","x","x","x","x","x","x","x","x","x","x","x"]
[null,"2.1 Usiner du bois massif","2.1 Usiner du bois massif","x","x","x","x",null,null,"x","x","x","x","x","x","x","x","x","x","x","x"]
[null,"2.1.1 Ils choisissent les essences de bois en fonction de l'utilisation prévue.","- Ils connaissent les essences de bois massifs couramment utilisées\n- Ils utilisent le bois en fonction de l'emploi prévu de manière indépendante","x","x","x","x",null,null,null,"x",{"$f":"IF(AND(J42=\"\",K42=\"\"),\"\",\"x\")","v":"x"},"x","x",{"$f":"IF(AND(M42=\"\",N42=\"\"),\"\",\"x\")","v":"x"},"x","x",{"$f":"IF(AND(P42=\"\",Q42=\"\"),\"\",\"x\")","v":"x"},"x","x",{"$f":"IF(AND(S42=\"\",T42=\"\"),\"\",\"x\")","v":"x"}]
[null,"2.1.2 Ils utilisent les modes de débitage du bois en fonction des travaux. ","- Ils préparent le bois massif","x","x","x",null,null,null,"x","x","x","x","x","x","x","x","x","x","x","x"]
[null,"2.1.3 Ils utilisent les essences de bois en tenant compte des défauts du bois et des parasites. ","- Ils identifient les défauts du bois et les parasites","x","x","x",null,null,null,"x","x","x","x","x","x","x","x","x","x","x","x"]
[null,"2.1.4 Ils sont attentifs à l'humidité du bois et aux défauts de séchage lors de la production en fonction de l'endroit où le bois sera utilisé.","- Ils remarquent lors du débitage les défauts de séchage ou le bois trop humide","x","x","x","x",null,null,null,"x","x","x","x","x","x","x","x","x","x","x"]
[null,"2.1.5 Ils sont attentifs à l'humidité du bois et aux défauts de séchage lors de la production de l'ouvrage et en fonction de l'endroit où le bois sera utilisé.","- Ils remarquent lors du débitage s'il y a un risque de déformation du bois","x","x","x","x",null,null,"x","x","x","x","x","x","x","x","x","x","x","x"]
[null,"2.1.6 Ils choisissent le moyen de transport et les possibilités de stockage adéquats en tenant compte de la sécurité au travail et la protection de la santé.","- Ils stockent et transportent le matériel de manière appropriée\n- Ils respectent les règles de sécurité du travail ainsi que la protection de la santé","x","x","x","x",null,null,null,null,"",null,null,"","x","x","x","x","x","x"]
[null,"2.1.7 Ils utilisent les machines spécifiques à l'entreprise et appliquent des techniques de travail sûres et efficaces.","- Ils débitent le bois de manière indépendante, sûre et efficace","x","x","x","x",null,null,"x","x","x","x","x","x","x","x","x","x","x","x"]
[null,"2.1.8 Ils utilisent les machines spécifiques à l'entreprise et appliquent des techniques de travail sûres et efficaces.","- Ils rabotent le bois massif de manière indépendante,sûre et efficace","x","x","x","x",null,null,"x","x","x","x","x","x","x","x","x","x","x","x"]
[null,"2.1.9 Ils utilisent les machines portatives et stationnaires spécifiques à l'entreprise et appliquent des techniques de travail sûres et efficaces. ","- Ils utilisent les machines courantes et les méthodes de travail de l'entreprise de manière sûre","x","x","x","x",null,null,null,null,"",null,"x","x","x","x","x","x","x","x"]
[null,"2.1.10 Ils utilisent différents outils manuels en fonction du travail à réaliser.","- Ils connaissent leurs outils personnels et savent les utiliser","x","x","x","x",null,null,"x","x","x","x","x","x","x","x","x","x","x","x"]
[null,"2.1.11 Ils sélectionnent les colles appropriées et les utilisent selon les instructions des fabricants (données technique et fiches de sécurité).","- Ils choisissent et utilisent de manière appropriée la colle à utiliser selon les instructions du fabricant","x","x","x","x",null,null,null,"x","x","x","x","x","x","x","x","x","x","x"]
[null,"2.1.12 Ils utilisent efficacement les procédés de serrage (presse à cadres, presse à panneaux, serre-joints). ","- Ils pressent les parties de l'ouvrage (avec le serre-joints manuel, sur le support pour la glue, etc.)\n- Ils collent chants et alaises","x","x","x","x",null,null,null,"x","x","x","x","x","x","x","x","x","x","x"]
[null,"2.1.13 Ils utilisent systématiquement et correctement les équipements de protection individuelle et les dispositifs de sécurité des machines.","- Ils utilisent leur équipement ainsi que leur matériel de sécurité personnels","x","x","x","x",null,null,"x","x","x","x","x","x","x","x","x","x","x","x"]
[null,"2.1.14 Ils évitent, trient, recyclent et éliminent les déchets selon les règles et les habitudes de l'entreprise.","- Ils évitent les déchets et les éliminent de manière appropriée","x","x","x","x",null,null,"x","x","x","x","x","x","x","x","x","x","x","x"]
[null,"2.1.15 Ils utilisent le tour pour des tâches simples de tourneur en toute sécurité et efficacement.","- Ils exécutent les travaux de tournage en toute sécurité",null,null,"x",null,null,null,null,null,"",null,"x","x","x","x","x","x","x","x"]
[null,"2.1.16 Ils utilisent les techniques adéquates pour courber les bois, à la main ou à l'aide de machines  (brancards, patins, jantes, par exemple).","-  Ils cintrent des parties de l'ouvrage (cuves, jantes, etc...)",null,null,"x",null,null,null,null,null,"",null,"x","x","x","x","x","x","x","x"]
[null,"2.2 Utiliser d’autres matériaux","2.2 Utiliser d’autres matériaux","x","x","x","x",null,null,null,"x","x","x","x","x","x","x","x","x","x","x"]
[null,"2.2.1 Ils utilisent les matériaux dérivés du bois adéquats (panneaux d'aggloméré, panneaux MDF, panneaux de fibres) en tenant compte des aspects écologiques.","- Ils utilisent les matériaux dérivés du bois (panneaux d'aggloméré, panneaux MDF, panneaux de fibres, etc.) ","x","x","x",null,null,null,null,"x",{"$f":"IF(AND(J59=\"\",K59=\"\"),\"\",\"x\")","v":"x"},"x","x",{"$f":"IF(AND(M59=\"\",N59=\"\"),\"\",\"x\")","v":"x"},"x","x",{"$f":"IF(AND(P59=\"\",Q59=\"\"),\"\",\"x\")","v":"x"},"x","x",{"$f":"IF(AND(S59=\"\",T59=\"\"),\"\",\"x\")","v":"x"}]
[null,"2.2.2 Ils utilisent les matériaux adéquats (par exemple métal, matière plastique, verre, matériaux minéraux ) en fonction du travail.","- Ils utilisent le verre, le métal et le plastique","x","x","x","x",null,null,null,"x","x","x","x","x","x","x","x","x","x","x"]
[null,"2.2.3 Ils utilisent les isolants et matériaux d'étanchéité adéquats selon les directives (fiche technique et feuille de sécurité)","- Ils utilisent les isolants de manière appropriée\n- Ils utilisent les matériaux de jointage de manière appropriée","x","x","x",null,null,null,null,null,"",null,null,"","x","x","x","x","x","x"]
[null,"2.2.4 Ils utilisent les produits semi-finis en fonction du travail et des exigences. ","- Ils utilisent les produits semi-fini","x","x","x","x",null,null,null,null,"",null,"x","x","x","x","x","x","x","x"]
[null,"2.2.5 Ils entreposent correctement les matériaux de constructions et matériaux dérivés selon les instructionsdu fabricant et de manière claire.","- Ils utilisent les instructions du fabricant pour entreposer les matériaux\n- Ils entreposent les matériaux proprement et de manière ordrée","x","x","x","x",null,null,null,null,"","x","x","x","x","x","x","x","x","x"]
[null,"2.2.6 Ils utilisent systématiquement et correctement les équipements de protection individuelle et les dispositifs de sécurité. ","- Ils utilisent leur équipement de protection personnelle et les dispositifs de sécurité","x","x","x","x",null,null,null,"x","x","x","x","x","x","x","x","x","x","x"]
[null,"2.2.7 Ils évitent, trient, recyclent et éliminent les déchets selon les règles et les habitudes de l'entreprise.","- Ils évitent les déchets et les éliminent de manière appropriée","x","x","x","x",null,null,null,"x","x","x","x","x","x","x","x","x","x","x"]
[null,"2.3 Plaquer les matériaux","2.3 Plaquer les matériaux","x","x","x","x",null,null,null,"x","x","x","x","x","x","x","x","x","x","x"]
[null,"2.3.1 Ils préparent les supports pour la pose du revêtement prévu (calibrage, prétraitement, par exemple). ","- Ils calibrent les pièces pour la fabrication ","x","x","x","x",null,null,null,"x",{"$f":"IF(AND(J67=\"\",K67=\"\"),\"\",\"x\")","v":"x"},"x","x",{"$f":"IF(AND(M67=\"\",N67=\"\"),\"\",\"x\")","v":"x"},"x","x",{"$f":"IF(AND(P67=\"\",Q67=\"\"),\"\",\"x\")","v":"x"},"x","x",{"$f":"IF(AND(S67=\"\",T67=\"\"),\"\",\"x\")","v":"x"}]
[null,"2.3.2 Ils découpent le revêtement (panneaux de résine  synthétique, aluminium, matière plastique, par exemple) en fonction du matériau et de l'utilisation prévue. ","- Ils débitent les revêtements","x","x","x","x",null,null,null,"x","x","x","x","x","x","x","x","x","x","x"]
[null,"2.3.3 Ils stockent correctement les différents matériaux de construction et matériaux dérivés selon les instructions du fabricant.","- Ils entreposent les matériaux de manière ordrée et appropriée","x","x","x","x",null,null,null,"x","x","x","x","x","x","x","x","x","x","x"]
[null,"2.3.4 Ils utilisent les différentes colles appropriées en tenant compte des données du fabricant (fiche technique et feuille de sécurité).","- Ils utilisent la colle pour les travaux de revêtement","x","x","x","x",null,null,null,"x","x","x","x","x","x","x","x","x","x","x"]
[null,"2.3.5 Ils utilisent les procédés de pressage en fonction du matériau.","- Ils utilisent la presse à plaquer \n- Ils utilisent d'autres méthodes pour les travaux de placage","x","x","x","x",null,null,null,"x","x","x","x","x","x","x","x","x","x","x"]
[null,"2.3.6 Ils utilisent systématiquement et correctement les équipements de protection individuelle et les dispositifs de sécurité. ","- Ils utilisent leur équipement de protection individuels et les dispositifs de sécurités","x","x","x","x",null,null,null,"x","x","x","x","x","x","x","x","x","x","x"]
[null,"2.3.7 Ils évitent, trient, recyclent et éliminent les déchets selon les règles et les habitudes de l'entreprise.","- Ils évitent les déchets et les éliminent de manière appropriée","x","x","x","x",null,null,null,"x","x","x","x","x","x","x","x","x","x","x"]
[null,"2.4 Assembler les éléments de construction","2.4 Assembler les éléments de construction","x","x","x","x",null,null,"x","x","x","x","x","x","x","x","x","x","x","x"]
[null,"2.4.1 Ils connaissent les exigences inhérentes aux éléments de construction (corps, armoires, portes sur cadre, huisseries).","- Ils connaissent les exigences inhérentes aux éléments de construction","x","x","x","x",null,null,"x","x",{"$f":"IF(AND(J75=\"\",K75=\"\"),\"\",\"x\")","v":"x"},"x","x",{"$f":"IF(AND(M75=\"\",N75=\"\"),\"\",\"x\")","v":"x"},"x","x",{"$f":"IF(AND(P75=\"\",Q75=\"\"),\"\",\"x\")","v":"x"},"x","x",{"$f":"IF(AND(S75=\"\",T75=\"\"),\"\",\"x\")","v":"x"}]
[null,"2.4.2 Ils utilisent les différentes techniques d’assemblage régionales (par ex. tourillons, rainures, languettes). ","- Ils choissisent la méthode d'assemblage (tourillons, rainures, languettes, etc.)","x","x","x","x",null,null,"x","x","x","x","x","x","x","x","x","x","x","x"]
[null,"2.4.3 Ils utilisent les machines portatives en toute sécurité et efficacement.","- Ils utilisent les machines portatives de manière sûre et efficace (défonceuse, scie sauteuse , etc.)","x","x","x","x",null,null,null,"x","x","x","x","x","x","x","x","x","x","x"]
[null,"2.4.4 Ils utilisent les machines stationnaires (par ex. tourilloneuse, perceuse à colonne, centre d'usinage CNC) en tenant compte de l'énergie utilisée, du bruit, en toute sécurité et efficacement.","- Ils se servent des machines stationnaires (perceuse à colonne, scie circulaire, scie à ruban, raboteuse, etc., après l'introduction dans les CIE)\n- Ils machinent tenons et enfourchements à la scie à ruban et à la toupie\n- Ils machinent battues, rainures et machinages arrêtés avec la toupie","x","x","x","x",null,null,null,"x","x","x","x","x","x","x","x","x","x","x"]
[null,"2.4.5 Ils choisissent les colles appropriées selon l'aspect écologique et selon les données du fabriquants (fiche technique et feuille de sécurité).","- Ils choisissent et utilisent la colle appropriée selon les instructions du fabricant ","x","x","x","x",null,null,null,"x","x","x","x","x","x","x","x","x","x","x"]
[null,"2.4.6 Ils utilisent différents procédés de serrage (presse à cadre, presse à corps, à la main, p. ex.). ","- Ils utilisent efficacement  les outils pour les  procédures de serrage comme les presses à cadres, les presses à corps, les serre-joints, etc. ","x","x","x","x",null,null,null,"x","x","x","x","x","x","x","x","x","x","x"]
[null,"2.4.7 Ils utilisent systématiquement et correctement les équipements de protection individuelle et les dispositifs de sécurité.","- Ils utilisent leur équipement de protection individuels et les dispositifs de sécurité ","x","x","x","x",null,null,null,"x","x","x","x","x","x","x","x","x","x","x"]
[null,"2.5 Poser les ferrements","2.5 Poser les ferrements","x","x","x","x",null,null,null,null,null,"x","x",null,"x","x",null,"x","x"]
[null,"2.5.1 Ils regroupent les ferrements à partir de listes.","- Ils choisissent les ferrements selon la liste","x","x","x",null,null,null,null,null,{"$f":"IF(AND(J83=\"\",K83=\"\"),\"\",\"x\")","v":""},"x","x",{"$f":"IF(AND(M83=\"\",N83=\"\"),\"\",\"x\")","v":"x"},"x","x",{"$f":"IF(AND(P83=\"\",Q83=\"\"),\"\",\"x\")","v":"x"},"x","x",{"$f":"IF(AND(S83=\"\",T83=\"\"),\"\",\"x\")","v":"x"}]
[null,"2.5.2 Ils installent des ferrements selon les instructions du fabricant, des plans de pose et des directives de l'entreprise. Ils font attention à la sécurité au travail et la protection de la santé. ","- Ils installent les ferrement selon le plan ainsi que les instructions du fabricant en respectant les règles de sécurité","x","x","x",null,null,null,null,null,"","x","x","x","x","x","x","x","x","x"]
[null,"2.5.3 Ils appliquent les instructions de pose et les instructions d'utilisation.","- Ils sont attentifs et respectent les exigences d'installation","x","x","x",null,null,null,null,null,"","x","x","x","x","x","x","x","x","x"]
[null,"2.5.4 Ils utilisent les joints selon les instructions d'utilisation.","- Ils installent les joints correctement","x","x",null,null,null,null,null,null,"","x","x","x","x","x","x","x","x","x"]
[null,"2.5.5 Ils utilisent les machines de l'entreprise pour poser les ferrements (par ex. machine à enfoncer, perceuse à colonne multiple, centre d'usinage CNC) et font attention à la sécurité au travail et la protection de la santé.","- Ils utilisent les machines pour la pose de ferrement de manière appropriée","x","x","x",null,null,null,null,null,"",null,"x","x","x","x","x","x","x","x"]
[null,"2.5.6 Ils utilisent des ferrements forgés à la main correspondant au style avec l'aide éventuelle du forgeron.","- Ils assemblent des ferrements forgés à la main (év. avec l'aide du forgeron) ",null,null,"x",null,null,null,null,null,"",null,null,"","x","x","x","x","x","x"]
[null,"2.6 Traiter des surfaces","2.6 Traiter des surfaces","x","x","x","x",null,null,null,null,null,null,null,null,null,"x",null,"x","x"]
[null,"2.6.1 Ils choisissent les produits (par ex. laques, huiles) selon les directives d'application (fiche technique et feuille de sécurité) et interprète les conséquences environnementales. ","- Ils comprennent les directives techniques et les respectent\n- Ils utilisent correctement le vernis et l'huile ","x","x","x","x",null,null,null,null,{"$f":"IF(AND(J90=\"\",K90=\"\"),\"\",\"x\")","v":""},null,null,{"$f":"IF(AND(M90=\"\",N90=\"\"),\"\",\"x\")","v":""},null,"x",{"$f":"IF(AND(P90=\"\",Q90=\"\"),\"\",\"x\")","v":"x"},"x","x",{"$f":"IF(AND(S90=\"\",T90=\"\"),\"\",\"x\")","v":"x"}]
[null,"2.6.2 Ils utilisent des méthodes de travail en fonction du résultat final. ","- Ils poncent, brossent, savonnent, égalisent, rincent, blanchissent, etc.","x","x","x","x",null,null,null,null,"",null,null,"",null,"x","x","x","x","x"]
[null,"2.6.4 Ils utilisent les différentes applications spécifiques à l'entreprise (au pistolet, au pinceau, par exemple). ","- Ils utilisent des différentes méthodes d'application comme, par exemple, au pistolet, au rouleau, au pinceau, etc.","x","x","x","x",null,null,null,null,"",null,null,"",null,"x","x","x","x","x"]
[null,"2.6.6 Ils respectent et appliquent les règles de la sécurité au travail.","- Ils utilisent leur équipement de protection individuels et les dispositifs de sécurité ","x","x","x","x",null,null,null,null,"",null,null,"",null,"x","x","x","x","x"]
[null,"2.6.7 Ils évitent, trient, recyclent et éliminent les déchets selon les règles et les habitudes de l'entreprise. ","- Ils recyclent et éliminent le vernis et l'huile correctement","x","x","x","x",null,null,null,null,"",null,null,"",null,"x","x","x","x","x"]
[null,"3 Fabrication de produits spécifiques à l’aménagement intérieur","3 Fabrication de produits spécifiques à l’aménagement intérieur","x",null,null,null,null,null,null,null,null,null,null,null,null,"x",null,"x","x"]
[null,"3.1 Utiliser d’autres matériaux","3.1 Utiliser d’autres matériaux","x",null,null,null,null,null,null,null,null,null,null,null,null,"x",null,"x","x"]
[null,"3.1.1 Ils utilisent les produits semi-finis en fonction du travail et des exigences (par ex. portes intérieures, produits en verre ou métallique, plans de travail) en tenant compte de la sécurité au travail et de la protection de la santé.","- Ils utilisent les produits semi-finis comme les portes d'intérieur ou les produits en verre, en métal, etc.","x",null,null,null,null,null,null,null,{"$f":"IF(AND(J97=\"\",K97=\"\"),\"\",\"x\")","v":""},null,null,{"$f":"IF(AND(M97=\"\",N97=\"\"),\"\",\"x\")","v":""},null,"x",{"$f":"IF(AND(P97=\"\",Q97=\"\"),\"\",\"x\")","v":"x"},"x","x",{"$f":"IF(AND(S97=\"\",T97=\"\"),\"\",\"x\")","v":"x"}]
[null,"3.2 Plaquer les matériaux ","3.2 Plaquer les matériaux ","x",null,"x",null,null,null,null,null,null,null,null,null,"x","x",null,"x","x"]
[null,"3.2.1 Ils utilisent le placage en fonction du travail prévu, le découpe et l'assemble en tenant compte de la sécurité au travail et de la protection de la santé.","- Ils découpent et assemblent le placage","x",null,null,null,null,null,null,null,{"$f":"IF(AND(J99=\"\",K99=\"\"),\"\",\"x\")","v":""},null,null,{"$f":"IF(AND(M99=\"\",N99=\"\"),\"\",\"x\")","v":""},"x","x",{"$f":"IF(AND(P99=\"\",Q99=\"\"),\"\",\"x\")","v":"x"},"x","x",{"$f":"IF(AND(S99=\"\",T99=\"\"),\"\",\"x\")","v":"x"}]
[null,"3.2.2 Ils stockent correctement les placages et sont attentifs aux conditions climatiques. ","- Ils entreposent le placage de manière appropriée","x",null,"x",null,null,null,null,null,"",null,null,"","x","x","x","x","x","x"]
[null,"3.2.3 Ils utilisent les colles appropriées selon les données du fabricants (fiche technique et feuille de sécurité). ","- Ils emploient les colles pour le placage selon les instructions du fabricant  ","x",null,null,null,null,null,null,null,"",null,null,"","x","x","x","x","x","x"]
[null,"3.3 Traiter des surfaces","3.3 Traiter des surfaces","x","x","x",null,null,null,null,null,null,null,null,null,"x","x",null,"x","x"]
[null,"3.3.1 Ils choisissent les produits (par ex. laque, teinte, couleur, cire) en fonction de l'utilisation prévue, du respect de l'environnement, des directives d'application (y compris fiche technique et feuille de sécurité).","- Ils utilisent le verni, la teinte et la cire selon les instructions du fabricant  ","x",null,"x",null,null,null,null,null,{"$f":"IF(AND(J103=\"\",K103=\"\"),\"\",\"x\")","v":""},null,null,{"$f":"IF(AND(M103=\"\",N103=\"\"),\"\",\"x\")","v":""},null,"x",{"$f":"IF(AND(P103=\"\",Q103=\"\"),\"\",\"x\")","v":"x"},"x","x",{"$f":"IF(AND(S103=\"\",T103=\"\"),\"\",\"x\")","v":"x"}]
[null,"3.3.2 Ils utilisent des méthodes de travail en fonction de la surface (enlever la résine, faire tremper, égaliser, blanchir, etc.).","- Ils exécutent le pré-traitement comme enlever la résine,  tremper, égaliser, blanchir, etc.","x",null,"x",null,null,null,null,null,"",null,null,"",null,"x","x","x","x","x"]
[null,"3.3.3 Ils utilisent des couleurs déjà mélangées.","- Ils utilisent les couleurs pré-mélangées","x",null,"x",null,null,null,null,null,"",null,null,"",null,"x","x","x","x","x"]
[null,"3.3.4 Ils utilisent les modes d'application de l'entreprise.","- Ils utilisent les méthodes d'application de l'entreprise, comme par exemple, au pistolet, au rouleau, au pinceau, etc.","x",null,"x",null,null,null,null,null,"",null,null,"",null,"x","x","x","x","x"]
[null,"3.3.5 Ils utilisent systématiquement et correctement les équipements de protection individuelle et les dispositifs de sécurité.","- Ils utilisent leur équipement de protection individuel et les dispositifs de sécurité","x","x","x",null,null,null,null,null,"",null,null,"",null,"x","x","x","x","x"]
[null,"4 Fabrication de produits spécifiques à l’aménagement extérieur","4 Fabrication de produits spécifiques à l’aménagement extérieur",null,"x",null,null,null,null,null,null,null,null,null,null,"x","x",null,"x","x"]
[null,"4.1 Utiliser d’autres matériaux ","4.1 Utiliser d’autres matériaux ",null,"x",null,null,null,null,null,null,null,null,null,null,"x","x",null,"x","x"]
[null,"4.1.1 Ils utilisent les matériaux adéquats (par ex. métal, acier, matières plastiques, matériaux minéraux, verre cellulaire, composites, tissus) en tenant compte des caractéristiques techniques et des feuilles de sécurité.","- Ils utilisent les matériaux comme le métal, l'acier, le plastique, le verre isolant, les minéraux et les matériaux composites",null,"x",null,null,null,null,null,null,{"$f":"IF(AND(J110=\"\",K110=\"\"),\"\",\"x\")","v":""},null,null,{"$f":"IF(AND(M110=\"\",N110=\"\"),\"\",\"x\")","v":""},"x","x",{"$f":"IF(AND(P110=\"\",Q110=\"\"),\"\",\"x\")","v":"x"},"x","x",{"$f":"IF(AND(S110=\"\",T110=\"\"),\"\",\"x\")","v":"x"}]
[null,"4.1.2 Ils utilisent dans leur travail les matériaux isolants et d'étanchéité adéquats (par ex. verre, hybride, bandes d'étanchéité) selon les instructions d'utilisation (inclus fiche technique et feuille de sécurité) en tenant compte de l'aspect écologique.","- Ils utilisent les matériaux isolants et d'étanchéité selon les instructions du fabricant",null,"x",null,null,null,null,null,null,"",null,null,"","x","x","x","x","x","x"]
[null,"4.1.3 Ils utilisent les produits semi-finis en fonction du travail et des exigences (élargissement de châssis, portes brutes, etc.)","- Ils utilisent les produits semi-finis (élargissement de châssis, portes brutes)",null,"x",null,null,null,null,null,null,"",null,null,"","x","x","x","x","x","x"]
[null,"4.2 Plaquer les matériaux ","4.2 Plaquer les matériaux ",null,"x","x","x",null,null,null,null,null,null,null,null,"x","x",null,"x","x"]
[null,"4.2.1 Ils utilisent les colles appropriées selon les données du fabricants (fiche technique et feuille de sécurité).","- Ils utilisent les colles appropriées selon la fiche technique et les instructions du fabricant",null,"x","x","x",null,null,null,null,{"$f":"IF(AND(J114=\"\",K114=\"\"),\"\",\"x\")","v":""},null,null,{"$f":"IF(AND(M114=\"\",N114=\"\"),\"\",\"x\")","v":""},"x","x",{"$f":"IF(AND(P114=\"\",Q114=\"\"),\"\",\"x\")","v":"x"},"x","x",{"$f":"IF(AND(S114=\"\",T114=\"\"),\"\",\"x\")","v":"x"}]
[null,"4.2.2 Ils utilisent les procédés de serrages adéquats en tenant compte des conditions climatiques extérieures, en toute sécurité et efficacement. ","- Ils utilisent les procédés de serrage selon la fiche technique",null,"x","x","x",null,null,null,null,"",null,null,"","x","x","x","x","x","x"]
[null,"4.3 Assembler les éléments de construction ","4.3 Assembler les éléments de construction ",null,"x","x",null,null,null,null,null,null,null,null,null,"x","x",null,"x","x"]
[null,"4.3.1 Ils connaissent les exigences inhérentes aux éléments de construction (fenêtres, portes extérieures, portails etc.).","- Ils connaissent les exigences inhérentes aux éléments de constructions",null,"x","x",null,null,null,null,null,{"$f":"IF(AND(J117=\"\",K117=\"\"),\"\",\"x\")","v":""},null,null,{"$f":"IF(AND(M117=\"\",N117=\"\"),\"\",\"x\")","v":""},null,null,{"$f":"IF(AND(P117=\"\",Q117=\"\"),\"\",\"x\")","v":""},"x","x",{"$f":"IF(AND(S117=\"\",T117=\"\"),\"\",\"x\")","v":"x"}]
[null,"4.3.2 Ils utilisent les techniques d’assemblage habituelles selon les instructions de l'entreprise.","- Ils utilisent les techniques d'assemblage appropriées (rainures, tourillons, languettes etc.)",null,"x","x",null,null,null,null,null,"",null,null,"","x","x","x","x","x","x"]
[null,"4.3.3 Ils utilisent les procédés de collages selon les instructions du fabricant (fiche technique et feuille de sécurité).","- Ils utilisent les procédés de collage selons les instructions du fabricant",null,"x","x",null,null,null,null,null,"",null,null,"","x","x","x","x","x","x"]
[null,"4.3.4 Ils utilisent les procédés de serrage (presse à cadre, etc.).","- Ils utilisent les procédés de collage avec l'aide, par exemple, de la presse à cadres, la presse à corps, les serre-joints, etc.",null,"x","x",null,null,null,null,null,"",null,null,"","x","x","x","x","x","x"]
[null,"4.3.5 Ils respectent et appliquent les règles de la sécurité au travail.","- Ils utilisent leur équipement de protection individuel et les dispositifs de sécurité ",null,"x","x",null,null,null,null,null,"",null,null,"","x","x","x","x","x","x"]
[null,"4.4 Poser les ferrements ","4.4 Poser les ferrements ",null,"x","x","x",null,null,null,null,null,null,null,null,"x","x",null,"x","x"]
[null,"4.4.1 Ils posent les ferrements selon les instructions du fabricant, les plans et les normes de l'entreprise (ferrements de fenêtres, ferme-portes automatiques, charnières).","- Ils posent les ferrements selon la fiche technique et les instructions du fabricant et les plans(par exemple  ferrement de fenêtre, ferme-porte, charnières). ",null,"x","x",null,null,null,null,null,{"$f":"IF(AND(J123=\"\",K123=\"\"),\"\",\"x\")","v":""},null,null,{"$f":"IF(AND(M123=\"\",N123=\"\"),\"\",\"x\")","v":""},"x","x",{"$f":"IF(AND(P123=\"\",Q123=\"\"),\"\",\"x\")","v":"x"},"x","x",{"$f":"IF(AND(S123=\"\",T123=\"\"),\"\",\"x\")","v":"x"}]
[null,"4.4.2 Ils appliquent les instructions de pose et les instructions d'utilisation.","- Ils sont attentifs et respectent les exigences d'installation",null,"x",null,null,null,null,null,null,"",null,null,"","x","x","x","x","x","x"]
[null,"4.4.3 Ils utilisent les joints selon les instructions d'utilisation (vulcanisation, soudage, collage, etc.).","- Ils vulcanisent, soudent, collent les joints",null,"x",null,null,null,null,null,null,"",null,null,"","x","x","x","x","x","x"]
[null,"4.4.4 Ils travaillent avec le forgeron pour les cerclages de roues.","- Ils cerclent les roues",null,null,"x",null,null,null,null,null,"",null,null,"",null,"x","x","x","x","x"]
[null,"4.4.5 Ils préparent les gabarits de perçage, les fixations et la perceuse à partir des informations de pose.","- Ils préparent la pose des joints et des pallettes",null,null,null,"x",null,null,null,null,"",null,null,"",null,"x","x","x","x","x"]
[null,"4.4.6 Ils montent les fixations et les plaques en respectant le point de pose et les autres instructions.","- Ils montent les joints et les pallettes de manière appropriée ",null,null,null,"x",null,null,null,null,"",null,null,"",null,"x","x","x","x","x"]
[null,"4.4.7 Ils vérifient  les fixations selon les valeurs du bpa.","- Ils testent les joints selon les valeurs du Bpa",null,null,null,"x",null,null,null,null,"",null,null,"",null,"x","x","x","x","x"]
[null,"4.5 Traiter des surfaces","4.5 Traiter des surfaces",null,"X","X","X",null,null,null,null,null,null,null,null,null,"x",null,"x","x"]
[null,"4.5.1 Ils utilisent les produits de traiement (par ex. laque, huile) selon les instructions (fiche technique et feuille de sécurité) en tenant compte de l'impact environnemental.","- Ils utilisent le verni, la peinture, l'huile selon les instructions du fabricant",null,"x","x","x",null,null,null,null,{"$f":"IF(AND(J131=\"\",K131=\"\"),\"\",\"x\")","v":""},null,null,{"$f":"IF(AND(M131=\"\",N131=\"\"),\"\",\"x\")","v":""},null,"x",{"$f":"IF(AND(P131=\"\",Q131=\"\"),\"\",\"x\")","v":"x"},"x","x",{"$f":"IF(AND(S131=\"\",T131=\"\"),\"\",\"x\")","v":"x"}]
[null,"4.5.2 Ils utilisent les différentes applications spécifiques à l'entreprise (par immersion, au pistolet, par imprégnation, par exemple).","- Ils utilisent les différentes aplplications spécifiques de l'entreprise (par ex. immersion, jets, imprégnation)",null,"x","x","x",null,null,null,null,"",null,null,"",null,"x","x","x","x","x"]
[null,"4.5.3 Ils conçoivent des skis.","- ils concoivent des skis",null,null,null,"x",null,null,null,null,"",null,null,"",null,null,"","x","x","x"]
[null,"4.5.4 Ils utilisent la technologie de sérigraphie en entreprise et tiennent compte pour cela de la fiche technique et la feuille de sécurité pour la sérigraphie.","- Ils utilisent la technique de sérigraphie de l'entreprise en tenant compte des insctructions du fabricant ",null,null,null,"x",null,null,null,null,"",null,null,"",null,"x","x","x","x","x"]
[null,"4.5.5 Ils utilisent les modes d'application de l'entreprise (par ex. sublimation, impression numérique).","- Ils choisissent les méthodes d'application de l'entreprise",null,null,null,"x",null,null,null,null,"",null,null,"",null,"x","x","x","x","x"]
[null,"4.5.6 Ils utilisent systématiquement et correctement les équipements de protection individuelle et les dispositifs de sécurité.","- Ils utilisent leur équipement de protection individuel et les dispositifs de sécurité ",null,null,null,"x",null,null,null,null,"",null,null,"",null,"x","x","x","x","x"]
[null,"4.6 Associer les skis bruts et les ajuster ","4.6 Associer les skis bruts et les ajuster ",null,null,null,"x",null,null,null,null,null,null,null,null,null,"x",null,"x","x"]
[null,"4.6.1 Ils regroupent les différents skis en paires en tenant compte de l'assurance qualité.","- Ils regroupent les paires de skis de manière appropriée ",null,null,null,"x",null,null,null,null,{"$f":"IF(AND(J138=\"\",K138=\"\"),\"\",\"x\")","v":""},null,null,{"$f":"IF(AND(M138=\"\",N138=\"\"),\"\",\"x\")","v":""},null,"x",{"$f":"IF(AND(P138=\"\",Q138=\"\"),\"\",\"x\")","v":"x"},"x","x",{"$f":"IF(AND(S138=\"\",T138=\"\"),\"\",\"x\")","v":"x"}]
[null,"4.6.2 Ils corrigent les paires de ski choisies.","- Ils corrigent les paires de skis",null,null,null,"x",null,null,null,null,"",null,null,"",null,"x","x","x","x","x"]
[null,"4.6.3 Ils testent la cambrure et la déformation latérale des paires. ","- Ils contrôlent la cambrure et la déformation latérale des paires de skis",null,null,null,"x",null,null,null,null,"",null,null,"",null,"x","x","x","x","x"]
[null,"4.6.4 Ils évaluent la fermeture en appuyant les semelles l'une contre l'autre.","- Ils contrôlent la qualité de la fermeture des skis ",null,null,null,"x",null,null,null,null,"",null,null,"",null,"x","x","x","x","x"]
[null,"5 Exécution de travaux de pose","5 Exécution de travaux de pose","x","x","x","x",null,null,null,null,null,"x","x",null,"x","x",null,"x","x"]
[null,"5.1 Exécuter des travaux de pose","5.1 Exécuter des travaux de pose","x","x","x","x",null,null,null,null,null,"x","x",null,"x","x",null,"x","x"]
[null,"5.1.1 Ils adoptent une tenue propre et soignée lorsqu'ils rencontrent le client. ","- Ils adoptent une  tenue propre et soignée lors des rencontres avec les clients","x","x","x","x",null,null,null,null,{"$f":"IF(AND(J144=\"\",K144=\"\"),\"\",\"x\")","v":""},"x","x",{"$f":"IF(AND(M144=\"\",N144=\"\"),\"\",\"x\")","v":"x"},"x","x",{"$f":"IF(AND(P144=\"\",Q144=\"\"),\"\",\"x\")","v":"x"},"x","x",{"$f":"IF(AND(S144=\"\",T144=\"\"),\"\",\"x\")","v":"x"}]
[null,"5.1.2 Ils respectent la sécurité au travail et la protection de la santé pendant les trajets et chez les clients (sécurité du transport et des véhicules, échafaudages, échelles, protection des produits, amiante, protection contre les chutes). ","- Ils respectent la sécurité lors des transports\n- Ils protègent les produits correctement                                                                                              - Ils utilisent correctement les moyens d'aide comme les échelles, les parois anti-poussière et les dispositifs anti-chutes \n- Ils manient l'amiante correctement ","x","x","x",null,null,null,null,null,"","x","x","x","x","x","x","x","x","x"]
[null,"5.1.3 Ils organisent le processus de travail, sélectionne les moyens d'aide et donne une grande importance à la propreté des lieux.","- Ils organisent le déroulement du travail \n- Ils maintiennent l'ordre","x","x","x",null,null,null,null,null,"","x","x","x","x","x","x","x","x","x"]
[null,"5.1.4 Ils organisent efficacement le chantier en tenant compte du travail à réaliser en suivant les instructions de pose et les règles de sécurité.","- Ils organisent efficacement le chantier et sont attentifs à la sécurité","x","x","x",null,null,null,null,null,"","x","x","x","x","x","x","x","x","x"]
[null,"5.1.5 Ils analysent les plans de construction et la documentation de pose. ","- Ils intérprètent les instructions de montage ainsi que les plans de construction","x","x","x",null,null,null,null,null,"","x","x","x","x","x","x","x","x","x"]
[null,"5.1.6 Ils appliquent les différentes techniques de fixation (chevilles, vis, perforateur par ex.).","- Ils choisissent les techniques de fixation (par exemple tampons, vis, perforateur, etc.) ","x","x","x",null,null,null,null,null,"","x","x","x","x","x","x","x","x","x"]
[null,"5.1.7 Ils réalisent la pose en tenant compte des interactions avec les différents métiers du bâtiment.","- Ils posent les produits de manière indépendante\n- Ils tiennent compte de l'interaction avec les différents métiers du bâtiment","x","x",null,null,null,null,null,null,"","x","x","x","x","x","x","x","x","x"]
[null,"5.1.8 Ils rédigent des procès-verbaux de réception en tenant compte du contrôle de fonctionnement.","- Ils rédigent des procès-verbaux de réception des travaux","x","x","x",null,null,null,null,null,"","x","x","x","x","x","x","x","x","x"]
[null,"5.2 Exécuter des travaux de pose dans des espaces intérieur","5.2 Exécuter des travaux de pose dans des espaces intérieurs","x",null,null,null,null,null,null,null,null,"x","x",null,"x","x",null,"x","x"]
[null,"5.2.1 Ils analysent la fixation avec le bâtiment en tenant compte des différentes conditions structurelles (bruits d'impacts, bruits de structure, par exemple).","- Ils analysent les fixations dans les bâtiments par rapport aux  bruits d'impacts et solidiens\n- Ils accompagent les planificateurs","x",null,null,null,null,null,null,null,{"$f":"IF(AND(J153=\"\",K153=\"\"),\"\",\"x\")","v":""},null,null,{"$f":"IF(AND(M153=\"\",N153=\"\"),\"\",\"x\")","v":""},"x","x",{"$f":"IF(AND(P153=\"\",Q153=\"\"),\"\",\"x\")","v":"x"},"x","x",{"$f":"IF(AND(S153=\"\",T153=\"\"),\"\",\"x\")","v":"x"}]
[null,"5.2.2 Ils réalisent des travaux simples de pose en compte des directives de l'entreprise (par ex. armoires, portes intérieures, cuisines, aménagements intérieurs) et font attention à la sécurité au travail et la protection de la santé.","- Ils exécutent des travaux simples de pose de manière indépendante (par exemple portes intérieures, cuisines, aménagements intérieurs,etc.)\n","x",null,null,null,null,null,null,null,"","x","x","x","x","x","x","x","x","x"]
[null,"5.3 Exécuter des travaux de pose à l’extérieur du bâtiment","5.3 Exécuter des travaux de pose à l’extérieur du bâtiment",null,"x",null,null,null,null,null,null,null,"x","x",null,"x","x",null,"x","x"]
[null,"5.3.1 Ils analysent la fixation avec le bâtiment en tenant compte des différentes conditions structurelles (humidité, chaleur, bruit, etc.).","- Ils analysent les fixations dans les bâtiments par rapport aux conditions structurelles (humidité chaleur, bruit)\n- Ils accompagnent les préparateurs",null,"x",null,null,null,null,null,null,{"$f":"IF(AND(J156=\"\",K156=\"\"),\"\",\"x\")","v":""},null,null,{"$f":"IF(AND(M156=\"\",N156=\"\"),\"\",\"x\")","v":""},"x","x",{"$f":"IF(AND(P156=\"\",Q156=\"\"),\"\",\"x\")","v":"x"},"x","x",{"$f":"IF(AND(S156=\"\",T156=\"\"),\"\",\"x\")","v":"x"}]
[null,"5.3.2 Ils réalisent des travaux de pose selon les directives de l'entreprise et de la situation structurelle (par ex. fenêtres, portes extérieures, fenêtres de toitures) et font attention à la sécurité au travail et la protection de la santé.","- lls réalisent des poses simples de manière indépendante par exemple des fenêtres, des portes extérieurs, des fenêtres de toiture\n- Ils sont attentifs à la sécurité du travail et la protection de la santé",null,"x",null,null,null,null,null,null,"","x","x","x","x","x","x","x","x","x"]
[null,"5.4 Effectuer des tâches d’entretien, de réparation et de vente","5.4 Effectuer des tâches d’entretien, de réparation et de vente","x","x","x","x",null,null,null,null,null,"x","x",null,"x","x",null,"x","x"]
[null,"5.4.1 Ils rédigent des procès-verbaux de réception en tenant compte du contrôle de fonctionnement. ","- Ils conseillent les clients sur des travaux simples","x","x","x","x",null,null,null,null,{"$f":"IF(AND(J159=\"\",K159=\"\"),\"\",\"x\")","v":""},"x","x",{"$f":"IF(AND(M159=\"\",N159=\"\"),\"\",\"x\")","v":"x"},"x","x",{"$f":"IF(AND(P159=\"\",Q159=\"\"),\"\",\"x\")","v":"x"},"x","x",{"$f":"IF(AND(S159=\"\",T159=\"\"),\"\",\"x\")","v":"x"}]
[null,"5.4.2 Ils effectuent des travaux d'entretien et des réparations.","- Ils effectuent des travaux d'entretien et de réparation","x","x","x",null,null,null,null,null,"","x","x","x","x","x","x","x","x","x"]
[null,"5.4.3 Ils évaluent l'état des skis et jugent de la pertinence des réparations ou de travaux d'entretien.","- Ils évaluent l'état des skis",null,null,null,"x",null,null,null,null,{"$f":"IF(AND(J161=\"\",K161=\"\"),\"\",\"x\")","v":""},null,null,"",null,"x","x","x","x","x"]
[null,"5.4.4 Ils effectuent des travaux d'entretien et des réparations.","- Ils effectuent des travaux d'entretien et de réparation",null,null,null,"x",null,null,null,null,"",null,null,"",null,"x","x","x","x","x"]
[null,"5.4.6 Ils donnent de bons arguments de vente aux clients","- Ils mènent des entretiens de vente",null,null,null,"x",null,null,null,null,"",null,null,"",null,"x","x","x","x","x"]
[]
[null,null,"Mesures d'accompagnement en matière de sécurité au travail et de protection de la santé","x","x","x","x",null,null,"x","x","x","x","x","x","x","x","x","x","x","x"]
["Travail (travaux) \ndangereux","Danger(s)","Sujets de prévention pour la formation, instruction et surveillance","x","x","x","x","Zeitpunkt der \nSchulung / Ausbildung","Eingeführt am\nDatum/Visum",{"$f":"J9&\" \"&J8","v":" Semestre 1"}," Semestre 2","1. année d'apprentissage"," Semestre 3"," Semestre 4","2. année d'apprentissage"," Semestre 5"," Semestre 6","3. année d'apprentissage"," Semestre 7"," Semestre 8","4. année d'apprentissage"]
[null,null,"Outils d’aide et documents","x","x","x","x","x","x","x","x","x","x","x","x","x","x","x","x","x","x"]
[null,null,null,"x","x","x","x","x","x","Überwachung \nneA = nach erfolgter Ausbildung"]
["Travaux répétitifs ou dans une mauvaise posture\n(p. ex. pendant les travaux de revêtements de sols ou de montage de plafond)\n","• Postures forcées, mouvements et postures inconfortables (lésions dorsales, etc.)\n• Effort excessif sur des parties du corps (tendinite, bursites chroniques, etc.)","Poste de travail ergonomique\nTechniques de travail et utilisation d’outils d’aide\n• Disposition ergonomique du poste de travail\n• Prévoir des phases de repos et une variation des tâches\n• Utilisation de moyens auxiliaires et d’EPI (pro-tection des genoux, aide au montage, etc.)\n• FRECEM Classeur Atelier Chap. 1.3: \"Place de travail\"\n","x","x","x","x","1e année",null,"en permanence ou\nfréquement FA","en permanence ou\nfréquement FA","Ständig oder \nhäufig neA","occasionnellement","occasionnellement","Gelegentlich","occasionnellement","occasionnellement","Gelegentlich","occasionnellement","occasionnellement","Gelegentlich"]
["Soulever, porter et déplacer manuellement des charges dont le poids dépasse les valeurs indicatives définies dans l’OLT 5 (par ex. pendant le déchargement, la pose, etc.) ","• Surcharge de l’appareil locomoteur (troubles de croissance, etc.)\n• Mauvaises postures (maux de dos, etc.)\n• Blessures par écrasement (au pied, p. ex.)\n","Manipulation de charges ménageant le corps\nTechniques de travail et utilisation de moyens auxiliaires\n• CFST 6245: \"Manutention de charges\"\n• FRECEM Classeur Atelier Chap. 1.1: \"Transporter des charges à la main en toute sécurité\"\n• Commentaire de l'ordonnance 3 relative à la loi sur le travail  : Art. 25 \n","x","x","x","x","1e année",null,"en permanence ou\nfréquement FA","en permanence ou\nfréquement FA","Ständig oder \nhäufig neA","occasionnellement","occasionnellement","Gelegentlich","occasionnellement","occasionnellement","Gelegentlich","occasionnellement","occasionnellement","Gelegentlich"]
["Transport, stockage et manipulation d’objets en bois et de produits de construction","• Blessures mécaniques par des échardes, se couper, être coincé par un objet)\n• Être écrasé par des produits ou des objets empilés qui basculent ou qui tombent\n• Sensibilisation cutanée et respiratoire\n\n\n","Stockage et manipulation sûrs d’objets en bois et des produits de construction\n• Instructions du fabricant/fiches techniques des produits\n• Utilisation d’équipement de protection indivi-duel (EPI)\n• FRECEM Classeur Atelier Chap. 1.1: \"Sécurité au travail et protection de la santé\"\n• FRECEM Classeur Atelier Chap. 1.7: \" Stockage et évacuation\"","x","x","x","x","1e - 4e\nannée",null,"en permanence ou\nfréquement FA","en permanence ou\nfréquement FA","Ständig oder \nhäufig neA","occasionnellement","occasionnellement","Gelegentlich","occasionnellement","occasionnellement","Gelegentlich","occasionnellement","occasionnellement","Gelegentlich"]
["Soulever et déplacer des charges avec des engins de levage, y compris élinguer des charges (p. ex. chariot élévateur à timon, «transpalette »)\n(excepté chariots élévateurs à fourche)\n","• Collision, être heurté par des objets, être coincé, écrasé, etc.\n• Blessures au pied par des charges lourdes","Manipulation de charges à l’aide d’engins de levage\n•\tInstructions du fabricant/Mode d’emploi\n•\tFRECEM Classeur Atelier Chap. 8.3: \"Transport vers le chantier\"\n•\tSuva F 88801: \"Dix règles vitales pour l’élingage des charges“\n•\tSuva LC 67017: \"Elingues (accessoires de levage)\"\n•\tSuva LC 67046: \"Chariots électriques à timon“","x","x","x","x","1e - 2e\nannée",null,"en permanence ou\nfréquement FA","en permanence ou\nfréquement FA","Ständig oder \nhäufig neA","occasionnellement","occasionnellement","Gelegentlich","occasionnellement","occasionnellement","Gelegentlich","occasionnellement","occasionnellement","Gelegentlich"]
["Elingage pour le transport de charges avec une grue.\n\n(Grues dans le domaine d'application de l'ordon-nance sur les grues = Compétence spéciale si elle est requise sur le plan opérationnel)","•\tCollision, être heurté par des objets, être coincé, écrasé, etc.\n•\tBlessures au pied par des charges lourdes","Élinguer des charges aux grues en toute sécurité \n•\tSuva FS 33099\n•\tSuva F 88801: \"Elingage de charges - Dossier de formation\"\n•\tSuva F 88802: \"Choix des élingues\"\n•\tSuva LC 67017: \"Elingues\"\n•\tSuva LC 67198: \"Accessoires de levage“\n•\tLa preuve écrite de la formation exigée doit être fournie.","x","x","x","x","Une formation doit être fournie avant la première utilisation!",null,"en permanence","en permanence","en permanence","en permanence","en permanence",null,"fréquement","fréquement","fréquement","fréquement","fréquement"]
["Utilisation de grues industrielles\n\n(Grues dans le domaine d'application de l'ordonnance sur les grues =Compétence spéciale si elle est requise sur le plan opérationnel)","•\tÊtre heurté par une charge qui oscille, se renverse ou qui tombe\n•\tBlessures aux mains et aux pieds lors du levage et de la dépose de la charge\n•\tSe faire coincer entre une grue et des parties du bâtiment","Manipulation sûre des grues industrielles \n•\tInstructions du fabricant/Mode d’emploi\n•\tSuva FS 33081\n•\tSuva LC 67158: \" Appareils de levage\n•\tSuva LC 67159: \" Ponts roulants\"\n•\tLa preuve écrite de la formation exigée doit être fournie.","x","x","x","x","Une formation doit être fournie avant la première utilisation!",null,"en permanence","en permanence","en permanence","en permanence","en permanence",null,"fréquement","fréquement","fréquement","fréquement","fréquement"]
["Travail avec des outils manuels et des machines portatives","• coupures, piqûres, écrasement, etc.\n• Lésions auditives\n• Blessures oculaires\n• Être frappé par des éclats\n• Dommages causés par de fortes vibrations","Sécurité des équipements de travail\n• Instructions du fabricant/Mode d’emploi\n• Utilisation d’équipement de protection individuel\n• FRECEM Classeur Atelier Chap. 1.1: \"Sécurité au travail et protection de la santé\"\n• Suva F 44015: \"Outils à main\"\n•  FRECEM Classeur Atelier Chap. 4: \"Machines portatives\"","x","x","x","x","1e - 2e\nannée",null,"en permanence ou\nfréquement FA","en permanence ou\nfréquement FA","Ständig oder \nhäufig neA","occasionnellement","occasionnellement","Gelegentlich","occasionnellement","occasionnellement","Gelegentlich","occasionnellement","occasionnellement","Gelegentlich"]
["Travaux avec des ma-chines stationnaires à travailler le bois\n(Utilisation normale y compris réglages )","• coupures, piqûres, écrasement, etc.\n• Être entraîné\n• Lésions auditives\n• Blessures oculaires\n• Être frappé par des éclats","Travailler le bois en toute sécurité et efficacement\nUtiliser en toute sécurité des machines et équipements\n• Instructions du fabricant/Mode d’emploi\n• Utilisation d’équipement de protection indivi-duel\n• FRECEM Classeur \"Travailler le bois en sécurité et efficacement\", vidéos sur www.suva.ch/travail-bois","x","x","x","x","1e - 4e\nannée",null,"en permanence ou\nfréquement FA","en permanence ou\nfréquement FA","Ständig oder \nhäufig neA","fréquement","fréquement","Häufig","fréquement","fréquement","Häufig","occasionnellement","occasionnellement","Gelegentlich"]
["Exécution de travaux de maintenance et de dépannage simples sur les machines\n","• coupures, piqûres, écrasement, etc.\n• Être entraîné\n• Énergie résiduelle non sécurisée\n• Bruit\n• Blessures oculaires","Exécution des travaux de maintenance et de dépannage en toute sécurité\n• Instructions du fabricant/Mode d’emploi\n• Utilisation d’équipement de protection individuel\n• FRECEM Classeur \"Travailler le bois en sécurité et efficacement\", vidéos sur www.suva.ch/travail-bois\n• Suva F 88813: \"Huit règles vitales pour la maintenance\" ","x","x","x","x","2e - 4e\nannée",null,null,null,null,"en permanence ou\nfréquement FA","en permanence ou\nfréquement FA","Ständig oder\nhäufig neA","fréquement","fréquement","Häufig","occasionnellement","occasionnellement","Gelegentlich"]
["Travaux dans un environnement chargé en poussière de bois","• Troubles et maladies respiratoires\n• Sensibilisation aux poussières de bois et risque de développement d’allergies (p. ex. risque accru de cancer causé par les essences de bois comme le hêtre, le chêne ou les bois exotiques)\n• Risques d’explosion et d’incendie","Mesures de protection et de sensibilisation concernant les poussières de bois\n• FRECEM Classeur \"Travailler le bois en sécurité et efficacement\" Chap. 1.3: \"Aspiration\"\n• FRECEM Classeur Atelier Chap. 1.1: \"Sécurité au travail et protection de la santé\" / Aspirer plutôt que souffler\n• Suva LC 67132: \"Risques d'explosion\"","x","x","x","x","1e année",null,"en permanence ou\nfréquement FA","en permanence ou\nfréquement FA","Ständig oder \nhäufig neA","occasionnellement","occasionnellement","Gelegentlich","occasionnellement","occasionnellement","Gelegentlich","occasionnellement","occasionnellement","Gelegentlich"]
["Travaux avec des substances dangereuses\n(p. ex. utilisation de catégories de substances avec phrases H dans le traitement de surface: Durcisseur isocyanate, vernis deux-composants et durcisseur avec peroxydes organiques, dissolvants, huiles, cires, savon, bases, produits d’entretien et de retouche, patine, produits pour la protection des bois ; autres produits utilisés dans les techniques d’assemblage et les travaux d’étanchéité : colles polyuréthanes, mousses de polyuréthane, formaldéhyde, etc. ; également lors du ponçage de ces matériaux)","• Sensibilisation et irritation des parties suivantes:\n- Yeux\n- Peau\n- Voies respiratoires\n- Muqueuses\n• Allergies et eczéma\n• Risque d’explosion et d’incendie ","Mesures de sensibilisation et de protection relative aux substances dangereuses\n• Instructions du fabricant et fiches de données de sécurité\n• Mesures d’aspiration et de ventilation et protection anti-explosion\n• Utilisation d’équipement de protection individuel\n• FRECEM Classeur Atelier Chap. 1.7: “Stockage et évacuation“\n• FRECEM Classeur Atelier Chap. 7.4: \"Giclage et applications\"\n• Suva F 44013: “Les produits chimiques utilisés dans l'industrie du bâtiment“\n• www.infochim.ch (p. ex. symboles de danger)\n• Utilisation sûre des produits pour la protection des bois\n\n\n","x","x","x","x","1e - 4e\nannée",null,"fréquement","fréquement","Ständig oder \nhäufig neA","fréquement","fréquement","Häufig","occasionnellement","occasionnellement","Gelegentlich","occasionnellement","occasionnellement","Gelegentlich"]
["Contact avec des matériaux contenant de l’amiante pendant les travaux de démolition ou de rénovation, en particulier les travaux de vitrerie (p. ex. mastic de fenêtre)","• Inhalation de fibres d’amiante libérées (maladies cancéreuses, etc.)","Identification et manipulation de produits contenant de l’amiante\n•\tSuva F 84043: \"Identifier, évaluer et manipuler correctement les produits amiantés. Règles vitales pour les menuisiers\"\n•\twww.suva.ch/amiante\n•\tFRECEM Classeur Atelier Chap. 8.5: \"Travaux de pose de vitres\"","x","x","x","x","1e année",null,"en permanence ou\nfréquement FA","fréquement","Ständig","fréquement","fréquement","Ständig","fréquement","fréquement","Ständig","fréquement","fréquement","Häufig"]
["Travaux sans poste de travail fixe \n(p. ex. travaux de pose sur les chantiers)","• Dangers causés par les changements constants de l’environnement de travail\n","Sécurité sur les chantiers et lors des travaux de pose \n• Ordonnance sur les travaux de construction \n• FRECEM Classeur Atelier Chap. 1.1: \"Sécurité au travail et protection de la santé\"\n• FRECEM Classeur Atelier Chap. 8: \"Pose\"\n• Suva F 88818: \"Dix règles vitales pour la branche de la construction en bois\"","x","x","x","x","1e - 2e\nannée",null,"en permanence ou\nfréquement FA","en permanence ou\nfréquement FA","Ständig oder \nhäufig neA","occasionnellement","occasionnellement","Gelegentlich","occasionnellement","occasionnellement",null,null,null,"Gelegentlich"]
["Travail en hauteur avec risque de chute \n(p. ex. travaux avec des échelles, des échafaudages de façades et échafaudages roulants en entreprise ainsi que sur le chantier)","• Chute en hauteur\n• Déplacement, basculement d’un équipement de travail\n\n","Utilisation sûre d’échelles \n• FRECEM Classeur Atelier Chap. 8.4: \"Travaux de pose\"\n• Suva F 84070: \"Qui peut répondre 12 fois «Oui»? Sécurité sur les échelles simples et doubles\"\n• Vidéo Suva 382: \"Les échelles? Il n'y a pas qu'elles!\"\nSécurité sur les échafaudages (p. ex. échafaudages de façade et échafaudages roulants)\n• Info Suva 44077/1: \"Echafaudages sûrs\"\n• FRECEM Classeur Atelier Chap. 8.4: \"Travaux de pose\"","x","x","x","x","1e année",null,"en permanence ou\nfréquement FA","en permanence ou\nfréquement FA","Ständig oder \nhäufig neA","occasionnellement","occasionnellement","Gelegentlich","occasionnellement","occasionnellement","Gelegentlich","occasionnellement","occasionnellement","Gelegentlich"]
["Travaux en hauteur avec des nacelles élévatrices\n(Compétence spéciale \nsi elle est requise sur le plan opérationnel)","• Chute de hauteur\n• Basculement d’un équipement de travail\n\n(p. ex. lors de travaux de pose de plafonds, pose de fenêtres)","Sécurité lors de travaux avec nacelles élévatrices\n• Instructions du fabricant/Mode d’emploi\n• Suva LC 67064/1 et LC 67064/2: \"Plateformes élévatrices\"\n• Une preuve écrite de la formation exigée doit être fournie","x","x","x","x","Formation avant la première utilisation",null,"fréquement","fréquement","Ständig","fréquement","fréquement","Ständig","fréquement","fréquement","Häufig","fréquement","fréquement","Häufig"]
["Travail en hauteur avec des équipements de pro-tection\ncontre les chutes \n(Compétence spéciale \nsi elle est requise sur le plan opérationnel)\n","• Chute de hauteur\n\n(p. ex. lors de pose de fenêtres)","Utilisation en toute sécurité d’EPI\n• En principe, les mesures collectives de protec-tion doivent être privilégiées autant que possible!\n• Instructions du fabricant/Mode d’emploi\n• Suva F 84044: \"Huit règles vitales pour les travaux avec protection par encordement\"\n• www.antichute.ch \n• La preuve écrite de la formation exigée doit être fournie\n","x","x","x","x","Formation avant la première utilisation",null,"fréquement","fréquement","Ständig","fréquement","fréquement","Ständig","fréquement","fréquement","Ständig","fréquement","fréquement","Ständig"]
[]
[null,null,"Dossier de formation","x","x","x","x","Délai","Date/\nVisa","Semestre 1","Semestre 2","Lehrjahr","Semestre 3","Semestre 4","x","Semestre 5","Semestre 6","x","Semestre 7","Semestre 8","x"]
[null,null,"Exemple 1",{"$f":"IF(COUNTIF($I187:$S187,\"x\")>0,\"x\",\"\")","v":"x"},{"$f":"IF(COUNTIF($I187:$S187,\"x\")>0,\"x\",\"\")","v":"x"},"x","x","2017-07-13","2017-07-14","x",null,{"$f":"IF(AND(J187=\"\",K187=\"\"),\"\",\"x\")","v":"x"},null,null,{"$f":"IF(AND(M187=\"\",N187=\"\"),\"\",\"x\")","v":""},null,null,{"$f":"IF(AND(P187=\"\",Q187=\"\"),\"\",\"x\")","v":""},null,null,{"$f":"IF(AND(S187=\"\",T187=\"\"),\"\",\"x\")","v":""}]
[null,null,"Exemple 2",{"$f":"IF(COUNTIF($I188:$S188,\"x\")>0,\"x\",\"\")","v":"x"},"x","x","x","2017-08-07","2017-08-08",null,"x","x",null,null,"",null,null,"",null,null,""]
[null,null,null,"","","","",null,null,null,null,"",null,null,"",null,null,"",null,null,""]
[null,null,null,"","","","",null,null,null,null,"",null,null,"",null,null,"",null,null,""]
[null,null,null,"","","","",null,null,null,null,"",null,null,"",null,null,"",null,null,""]
[null,null,null,"","","","",null,null,null,null,"",null,null,"",null,null,"",null,null,""]
[null,null,null,"","","","",null,null,null,null,"",null,null,"",null,null,"",null,null,""]
[null,null,null,"","","","",null,null,null,null,"",null,null,"",null,null,"",null,null,""]
[null,null,null,"","","","",null,null,null,null,"",null,null,"",null,null,"",null,null,""]
[null,null,null,"","","","",null,null,null,null,"",null,null,"",null,null,"",null,null,""]
[null,null,null,"","","","",null,null,null,null,"",null,null,"",null,null,"",null,null,""]
[null,null,null,"","","","",null,null,null,null,"",null,null,"",null,null,"",null,null,""]
[null,null,null,"","","","",null,null,null,null,"",null,null,"",null,null,"",null,null,""]
[]
[null,null,"Cours interentreprises",null,null,null,null,"Date de réalisation"]
[]
[]
[]
[]
[null,null,"Entretien rapport de formation",null,null,null,null,"Date de réalisation"]